[Event "Titled Tuesday Blitz May 16 Late 2023"]
[White "Joubert, Dantelle"]
[Black "Khandelwal, Ankush"]
[WhiteFideId "14310813"]
[BlackFideId "413470"]
[WhiteElo "1507"]
[BlackElo "2263"]
[Result "0-1"]
[Round "01"]
[TimeControl "180+2"]
[Date "2023.05.16"]
[WhiteClock "0:00:00"]
[BlackClock "0:00:19"]

1. d4 {[%clk 0:02:59]}  Nf6 {[%clk 0:02:59]} 2. c4 {[%clk 0:02:58]}  g6 {[%clk 0:02:59]} 3. Nc3 {[%clk 0:02:58]}  Bg7 {[%clk 0:02:59]} 4. e4 {[%clk 0:02:58]}  d6 {[%clk 0:02:57]} 5. Nf3 {[%clk 0:02:57]}  O-O {[%clk 0:02:55]} 6. Be2 {[%clk 0:02:57]}  Nbd7 {[%clk 0:02:44]} 7. e5 {[%clk 0:02:56]}  dxe5 {[%clk 0:02:33]} 8. dxe5 {[%clk 0:02:57]}  Ng4 {[%clk 0:02:31]} 9. e6 {[%clk 0:02:55]}  fxe6 {[%clk 0:02:32]} 10. O-O {[%clk 0:02:53]}  Nde5 {[%clk 0:02:31]} 11. Qc2 {[%clk 0:02:44]}  Qd6 {[%clk 0:02:14]} 12. Nxe5 {[%clk 0:02:30]}  Nxe5 {[%clk 0:02:11]} 13. Be3 {[%clk 0:02:20]}  c6 {[%clk 0:02:04]} 14. Rad1 {[%clk 0:02:15]}  Qc7 {[%clk 0:02:05]} 15. f4 {[%clk 0:02:03]}  Nf7 {[%clk 0:02:00]} 16. c5 {[%clk 0:01:59]}  e5 {[%clk 0:01:59]} 17. Bc4 {[%clk 0:01:47]}  Kh8 {[%clk 0:01:50]} 18. fxe5 {[%clk 0:01:19]}  Bf5 {[%clk 0:01:36]} 19. Rxf5 {[%clk 0:01:00]}  gxf5 {[%clk 0:01:37]} 20. e6 {[%clk 0:00:30]}  Ne5 {[%clk 0:01:35]} 21. Bb3 {[%clk 0:00:20]}  f4 {[%clk 0:01:34]} 22. Bf2 {[%clk 0:00:19]}  f3 {[%clk 0:01:34]} 23. Bg3 {[%clk 0:00:16]}  fxg2 {[%clk 0:00:30]} 24. Kxg2 {[%clk 0:00:13]}  Rad8 {[%clk 0:00:30]} 25. Re1 {[%clk 0:00:10]}  Nf3 {[%clk 0:00:24]} 26. Re2 {[%clk 0:00:07]}  Qa5 {[%clk 0:00:22]} 27. Qe4 {[%clk 0:00:03]}  Qxc5 {[%clk 0:00:19]} 28. Qh4 {[%clk 0:00:00]}  Nxh4+ {[%clk 0:00:19]} 0-1


[Site "https://www.chess.com"]

[Event "Titled Tuesday Blitz May 16 Late 2023"]
[White "dorpato"]
[Black "cristianserban1"]
[WhiteElo "1995"]
[BlackElo "2528"]
[Result "0-1"]
[Round "01"]
[TimeControl "180+2"]
[Date "2023.05.16"]
[WhiteClock "0:00:08"]
[BlackClock "0:00:42"]

1. e4 {[%clk 0:02:59]}  c6 {[%clk 0:02:59]} 2. d4 {[%clk 0:02:57]}  d5 {[%clk 0:03:00]} 3. e5 {[%clk 0:02:58]}  g6 {[%clk 0:03:00]} 4. Nf3 {[%clk 0:02:57]}  Bg4 {[%clk 0:02:59]} 5. Be2 {[%clk 0:02:57]}  e6 {[%clk 0:02:58]} 6. c3 {[%clk 0:02:57]}  a6 {[%clk 0:02:57]} 7. h3 {[%clk 0:02:56]}  Bxf3 {[%clk 0:02:57]} 8. Bxf3 {[%clk 0:02:56]}  c5 {[%clk 0:02:57]} 9. O-O {[%clk 0:02:55]}  Nc6 {[%clk 0:02:57]} 10. Be3 {[%clk 0:02:54]}  cxd4 {[%clk 0:02:56]} 11. cxd4 {[%clk 0:02:54]}  Nge7 {[%clk 0:02:55]} 12. Nc3 {[%clk 0:02:51]}  Nf5 {[%clk 0:02:55]} 13. Na4 {[%clk 0:02:50]}  Be7 {[%clk 0:02:46]} 14. Rc1 {[%clk 0:02:48]}  O-O {[%clk 0:02:43]} 15. Nc5 {[%clk 0:02:45]}  Bxc5 {[%clk 0:02:26]} 16. Rxc5 {[%clk 0:02:41]}  Qd7 {[%clk 0:02:23]} 17. Qd2 {[%clk 0:02:35]}  Rfc8 {[%clk 0:02:23]} 18. Rfc1 {[%clk 0:02:34]}  Nce7 {[%clk 0:02:14]} 19. Bg5 {[%clk 0:02:29]}  Rxc5 {[%clk 0:02:12]} 20. Rxc5 {[%clk 0:02:26]}  Nc6 {[%clk 0:02:06]} 21. Be3 {[%clk 0:02:21]}  Rc8 {[%clk 0:02:04]} 22. Rc3 {[%clk 0:02:19]}  Nce7 {[%clk 0:02:02]} 23. Bg4 {[%clk 0:01:59]}  h5 {[%clk 0:01:56]} 24. Bxf5 {[%clk 0:01:36]}  Nxf5 {[%clk 0:01:57]} 25. Bg5 {[%clk 0:01:31]}  Rxc3 {[%clk 0:01:52]} 26. Qxc3 {[%clk 0:01:07]}  Qc6 {[%clk 0:01:52]} 27. Qb3 {[%clk 0:00:49]}  Nxd4 {[%clk 0:01:50]} 28. Qe3 {[%clk 0:00:48]}  Nf5 {[%clk 0:01:48]} 29. Qa7 {[%clk 0:00:46]}  Qc8 {[%clk 0:01:41]} 30. Bf6 {[%clk 0:00:20]}  Ng7 {[%clk 0:01:27]} 31. Qe3 {[%clk 0:00:19]}  Kh7 {[%clk 0:01:27]} 32. g4 {[%clk 0:00:18]}  Qc2 {[%clk 0:01:15]} 33. gxh5 {[%clk 0:00:17]}  Nxh5 {[%clk 0:01:14]} 34. Qa3 {[%clk 0:00:16]}  Qb1+ {[%clk 0:01:03]} 35. Kh2 {[%clk 0:00:14]}  Qf5 {[%clk 0:01:00]} 36. Kg2 {[%clk 0:00:13]}  Nf4+ {[%clk 0:00:59]} 37. Kg1 {[%clk 0:00:12]}  Qxh3 {[%clk 0:00:50]} 38. Qxh3+ {[%clk 0:00:10]}  Nxh3+ {[%clk 0:00:51]} 39. Kg2 {[%clk 0:00:11]}  Nf4+ {[%clk 0:00:52]} 40. Kf3 {[%clk 0:00:10]}  Nh5 {[%clk 0:00:52]} 41. Kg4 {[%clk 0:00:10]}  Nxf6+ {[%clk 0:00:51]} 42. exf6 {[%clk 0:00:11]}  Kh6 {[%clk 0:00:51]} 43. f4 {[%clk 0:00:10]}  d4 {[%clk 0:00:41]} 44. Kf3 {[%clk 0:00:10]}  Kh5 {[%clk 0:00:41]} 45. Ke4 {[%clk 0:00:10]}  Kg4 {[%clk 0:00:42]} 46. Kxd4 {[%clk 0:00:08]}  Kxf4 {[%clk 0:00:42]} 0-1


[Site "https://www.chess.com"]

[Event "Titled Tuesday Blitz May 16 Late 2023"]
[White "Ismayilova, Khanim"]
[Black "Guerra Tulcan, Lenin"]
[WhiteFideId "13429019"]
[BlackFideId "3601382"]
[WhiteElo "1633"]
[BlackElo "2368"]
[Result "1/2-1/2"]
[Round "01"]
[TimeControl "180+2"]
[Date "2023.05.16"]
[WhiteClock "0:00:15"]
[BlackClock "0:00:37"]

1. c4 {[%clk 0:03:00]}  Nf6 {[%clk 0:02:59]} 2. Nc3 {[%clk 0:02:59]}  e5 {[%clk 0:03:00]} 3. Nf3 {[%clk 0:02:59]}  Nc6 {[%clk 0:02:59]} 4. e3 {[%clk 0:03:00]}  a6 {[%clk 0:02:58]} 5. d4 {[%clk 0:02:59]}  exd4 {[%clk 0:02:59]} 6. exd4 {[%clk 0:02:59]}  d5 {[%clk 0:03:00]} 7. Be2 {[%clk 0:02:50]}  Bb4 {[%clk 0:02:53]} 8. O-O {[%clk 0:02:47]}  dxc4 {[%clk 0:02:53]} 9. Bxc4 {[%clk 0:02:47]}  O-O {[%clk 0:02:54]} 10. Bg5 {[%clk 0:02:45]}  h6 {[%clk 0:02:49]} 11. Bh4 {[%clk 0:02:36]}  Bg4 {[%clk 0:02:49]} 12. Nd5 {[%clk 0:02:08]}  g5 {[%clk 0:02:38]} 13. Nxf6+ {[%clk 0:02:04]}  Qxf6 {[%clk 0:02:38]} 14. Bg3 {[%clk 0:02:04]}  Bxf3 {[%clk 0:02:35]} 15. Qxf3 {[%clk 0:02:00]}  Qxf3 {[%clk 0:02:35]} 16. gxf3 {[%clk 0:02:00]}  Nxd4 {[%clk 0:02:35]} 17. Kg2 {[%clk 0:01:50]}  b5 {[%clk 0:02:17]} 18. Rad1 {[%clk 0:01:31]}  c5 {[%clk 0:01:58]} 19. Bd3 {[%clk 0:01:19]}  Rad8 {[%clk 0:01:58]} 20. Bc7 {[%clk 0:01:08]}  Rd7 {[%clk 0:01:54]} 21. Be5 {[%clk 0:00:59]}  Rfd8 {[%clk 0:01:43]} 22. Bf6 {[%clk 0:00:57]}  Re8 {[%clk 0:01:36]} 23. Bf5 {[%clk 0:00:51]}  Rd5 {[%clk 0:01:35]} 24. Be4 {[%clk 0:00:47]}  Rd6 {[%clk 0:01:28]} 25. Bxd4 {[%clk 0:00:40]}  cxd4 {[%clk 0:01:29]} 26. Rd3 {[%clk 0:00:39]}  Re5 {[%clk 0:01:23]} 27. Rfd1 {[%clk 0:00:38]}  Bc5 {[%clk 0:01:20]} 28. Rc1 {[%clk 0:00:33]}  f5 {[%clk 0:01:19]} 29. Bb7 {[%clk 0:00:31]}  Kf7 {[%clk 0:01:09]} 30. a3 {[%clk 0:00:26]}  a5 {[%clk 0:01:06]} 31. Rc2 {[%clk 0:00:20]}  Rb6 {[%clk 0:01:02]} 32. Ba8 {[%clk 0:00:16]}  Ke7 {[%clk 0:00:56]} 33. f4 {[%clk 0:00:16]}  gxf4 {[%clk 0:00:55]} 34. Kf3 {[%clk 0:00:17]}  Kd6 {[%clk 0:00:54]} 35. Kxf4 {[%clk 0:00:16]}  Rb8 {[%clk 0:00:50]} 36. Bg2 {[%clk 0:00:15]}  Rg8 {[%clk 0:00:47]} 37. Rg3 {[%clk 0:00:13]}  Rxg3 {[%clk 0:00:43]} 38. hxg3 {[%clk 0:00:12]}  Ke6 {[%clk 0:00:28]} 39. Bh3 {[%clk 0:00:09]}  Bd6 {[%clk 0:00:28]} 40. Kf3 {[%clk 0:00:05]}  Rc5 {[%clk 0:00:27]} 41. Rxc5 {[%clk 0:00:04]}  Bxc5 {[%clk 0:00:28]} 42. Ke2 {[%clk 0:00:04]}  d3+ {[%clk 0:00:26]} 43. Kxd3 {[%clk 0:00:04]}  Bxf2 {[%clk 0:00:26]} 44. g4 {[%clk 0:00:04]}  fxg4 {[%clk 0:00:26]} 45. Bxg4+ {[%clk 0:00:05]}  Ke5 {[%clk 0:00:27]} 46. Ke2 {[%clk 0:00:04]}  Bd4 {[%clk 0:00:26]} 47. Bd7 {[%clk 0:00:04]}  Bxb2 {[%clk 0:00:25]} 48. Bxb5 {[%clk 0:00:03]}  Bxa3 {[%clk 0:00:25]} 49. Kf3 {[%clk 0:00:03]}  Bc1 {[%clk 0:00:24]} 50. Kg2 {[%clk 0:00:03]}  Kf4 {[%clk 0:00:24]} 51. Kh1 {[%clk 0:00:04]}  Kg3 {[%clk 0:00:24]} 52. Bc6 {[%clk 0:00:05]}  h5 {[%clk 0:00:24]} 53. Bd7 {[%clk 0:00:05]}  h4 {[%clk 0:00:25]} 54. Bc6 {[%clk 0:00:06]}  Bd2 {[%clk 0:00:25]} 55. Bd7 {[%clk 0:00:06]}  Be1 {[%clk 0:00:25]} 56. Bc6 {[%clk 0:00:07]}  Kf4 {[%clk 0:00:26]} 57. Bd7 {[%clk 0:00:08]}  Bg3 {[%clk 0:00:26]} 58. Bc6 {[%clk 0:00:08]}  Ke5 {[%clk 0:00:26]} 59. Bd7 {[%clk 0:00:09]}  Kd6 {[%clk 0:00:26]} 60. Ba4 {[%clk 0:00:09]}  Kc5 {[%clk 0:00:24]} 61. Be8 {[%clk 0:00:10]}  h3 {[%clk 0:00:24]} 62. Bd7 {[%clk 0:00:10]}  h2 {[%clk 0:00:25]} 63. Be8 {[%clk 0:00:10]}  Bd6 {[%clk 0:00:26]} 64. Ba4 {[%clk 0:00:08]}  Kb6 {[%clk 0:00:26]} 65. Be8 {[%clk 0:00:09]}  Kc7 {[%clk 0:00:26]} 66. Ba4 {[%clk 0:00:09]}  Kd8 {[%clk 0:00:26]} 67. Bc6 {[%clk 0:00:09]}  Ke7 {[%clk 0:00:27]} 68. Ba4 {[%clk 0:00:09]}  Be5 {[%clk 0:00:28]} 69. Bb5 {[%clk 0:00:10]}  Bf4 {[%clk 0:00:28]} 70. Ba4 {[%clk 0:00:10]}  Kd6 {[%clk 0:00:29]} 71. Bb5 {[%clk 0:00:11]}  Kc5 {[%clk 0:00:29]} 72. Be8 {[%clk 0:00:11]}  Kb4 {[%clk 0:00:30]} 73. Bd7 {[%clk 0:00:11]}  a4 {[%clk 0:00:31]} 74. Bxa4 {[%clk 0:00:11]}  Kxa4 {[%clk 0:00:32]} 75. Kg2 {[%clk 0:00:12]}  Kb3 {[%clk 0:00:33]} 76. Kh1 {[%clk 0:00:12]}  Kc3 {[%clk 0:00:34]} 77. Kg2 {[%clk 0:00:13]}  Kd2 {[%clk 0:00:35]} 78. Kh1 {[%clk 0:00:14]}  Ke2 {[%clk 0:00:36]} 79. Kg2 {[%clk 0:00:14]}  Ke1 {[%clk 0:00:36]} 80. Kh1 {[%clk 0:00:15]}  Kf1 {[%clk 0:00:37]} 1/2-1/2


[Site "https://www.chess.com"]

[Event "Titled Tuesday Blitz May 16 Late 2023"]
[White "Roebers, Eline"]
[Black "Arias Igual, Alejandro"]
[WhiteFideId "1058401"]
[BlackFideId "2254905"]
[WhiteElo "2526"]
[BlackElo "2179"]
[Result "1-0"]
[Round "01"]
[TimeControl "180+2"]
[Date "2023.05.16"]
[WhiteClock "0:01:35"]
[BlackClock "0:01:40"]

1. f4 {[%clk 0:03:00]}  Nf6 {[%clk 0:02:58]} 2. Nf3 {[%clk 0:02:58]}  g6 {[%clk 0:02:59]} 3. g3 {[%clk 0:02:57]}  Bg7 {[%clk 0:02:59]} 4. Bg2 {[%clk 0:02:57]}  O-O {[%clk 0:03:00]} 5. O-O {[%clk 0:02:58]}  d5 {[%clk 0:03:00]} 6. d3 {[%clk 0:02:58]}  b6 {[%clk 0:03:01]} 7. Qe1 {[%clk 0:02:56]}  Bb7 {[%clk 0:03:00]} 8. Na3 {[%clk 0:02:56]}  c5 {[%clk 0:02:58]} 9. c3 {[%clk 0:02:56]}  Nbd7 {[%clk 0:02:57]} 10. h3 {[%clk 0:02:50]}  Qc7 {[%clk 0:02:56]} 11. g4 {[%clk 0:02:48]}  e5 {[%clk 0:02:45]} 12. fxe5 {[%clk 0:02:37]}  Nxe5 {[%clk 0:02:46]} 13. Nxe5 {[%clk 0:02:24]}  Qxe5 {[%clk 0:02:47]} 14. Bf4 {[%clk 0:02:24]}  Qe7 {[%clk 0:02:46]} 15. Qf2 {[%clk 0:02:10]}  a6 {[%clk 0:02:43]} 16. Bg5 {[%clk 0:01:53]}  Rab8 {[%clk 0:01:52]} 17. Bxf6 {[%clk 0:01:52]}  Bxf6 {[%clk 0:01:53]} 18. Qxf6 {[%clk 0:01:53]}  Qxe2 {[%clk 0:01:52]} 19. Qf2 {[%clk 0:01:37]}  Qxd3 {[%clk 0:01:40]} 20. Rad1 {[%clk 0:01:35]} 1-0


[Site "https://www.chess.com"]

[Event "Titled Tuesday Blitz May 16 Late 2023"]
[White "Jovic, Stanoje"]
[Black "Vargas, Mauricio"]
[WhiteFideId "905020"]
[BlackFideId "4404572"]
[WhiteElo "2236"]
[BlackElo "1986"]
[Result "1-0"]
[Round "01"]
[TimeControl "180+2"]
[Date "2023.05.16"]
[WhiteClock "0:00:02"]
[BlackClock "0:00:00"]

1. c4 {[%clk 0:02:59]}  e5 {[%clk 0:02:59]} 2. g3 {[%clk 0:02:58]}  Nc6 {[%clk 0:02:58]} 3. Bg2 {[%clk 0:02:58]}  f5 {[%clk 0:02:58]} 4. Nh3 {[%clk 0:02:56]}  Nf6 {[%clk 0:02:58]} 5. O-O {[%clk 0:02:55]}  h6 {[%clk 0:02:57]} 6. d3 {[%clk 0:02:51]}  g5 {[%clk 0:02:56]} 7. f4 {[%clk 0:02:46]}  g4 {[%clk 0:02:53]} 8. Nf2 {[%clk 0:02:43]}  d6 {[%clk 0:02:48]} 9. Nc3 {[%clk 0:02:40]}  h5 {[%clk 0:02:43]} 10. e4 {[%clk 0:02:39]}  h4 {[%clk 0:02:36]} 11. exf5 {[%clk 0:02:37]}  hxg3 {[%clk 0:02:34]} 12. hxg3 {[%clk 0:02:33]}  Bxf5 {[%clk 0:02:30]} 13. Nfe4 {[%clk 0:02:24]}  Bxe4 {[%clk 0:02:18]} 14. Nxe4 {[%clk 0:02:18]}  Qe7 {[%clk 0:02:12]} 15. Nxf6+ {[%clk 0:02:15]}  Qxf6 {[%clk 0:02:09]} 16. fxe5 {[%clk 0:02:04]}  Qg7 {[%clk 0:01:59]} 17. Qa4 {[%clk 0:01:30]}  O-O-O {[%clk 0:01:28]} 18. d4 {[%clk 0:00:50]}  Nxd4 {[%clk 0:01:14]} 19. Qxa7 {[%clk 0:00:40]}  Ne2+ {[%clk 0:00:40]} 20. Kf2 {[%clk 0:00:32]}  Qxe5 {[%clk 0:00:27]} 21. Qxb7+ {[%clk 0:00:25]}  Kd7 {[%clk 0:00:26]} 22. Qc6+ {[%clk 0:00:25]}  Ke7 {[%clk 0:00:23]} 23. Qe4 {[%clk 0:00:21]}  Qxe4 {[%clk 0:00:18]} 24. Bxe4 {[%clk 0:00:19]}  Rh2+ {[%clk 0:00:17]} 25. Bg2 {[%clk 0:00:11]}  Nxc1 {[%clk 0:00:17]} 26. Raxc1 {[%clk 0:00:11]}  Bh6 {[%clk 0:00:17]} 27. Rce1+ {[%clk 0:00:09]}  Kd7 {[%clk 0:00:17]} 28. Kg1 {[%clk 0:00:09]}  Rh5 {[%clk 0:00:16]} 29. Rf7+ {[%clk 0:00:09]}  Kc8 {[%clk 0:00:13]} 30. Ree7 {[%clk 0:00:09]}  Rc5 {[%clk 0:00:09]} 31. b3 {[%clk 0:00:06]}  Bd2 {[%clk 0:00:07]} 32. Bd5 {[%clk 0:00:05]}  Bc3 {[%clk 0:00:05]} 33. a3 {[%clk 0:00:05]}  Bd4+ {[%clk 0:00:05]} 34. Kg2 {[%clk 0:00:05]}  Rh8 {[%clk 0:00:03]} 35. b4 {[%clk 0:00:04]}  c6 {[%clk 0:00:00]} 36. Be6+ {[%clk 0:00:02]} 1-0


[Site "https://www.chess.com"]

[Event "Titled Tuesday Blitz May 16 Late 2023"]
[White "Ozates, Tuna"]
[Black "Panico, Nick"]
[WhiteFideId "6354521"]
[BlackFideId "2026724"]
[WhiteElo "2151"]
[BlackElo "1982"]
[Result "1-0"]
[Round "01"]
[TimeControl "180+2"]
[Date "2023.05.16"]
[WhiteClock "0:02:00"]
[BlackClock "0:02:02"]

1. d4 {[%clk 0:02:59]}  f5 {[%clk 0:02:59]} 2. g3 {[%clk 0:02:59]}  Nf6 {[%clk 0:03:00]} 3. Bg2 {[%clk 0:03:00]}  g6 {[%clk 0:03:01]} 4. Nh3 {[%clk 0:03:00]}  Bg7 {[%clk 0:03:01]} 5. O-O {[%clk 0:03:01]}  O-O {[%clk 0:03:02]} 6. c4 {[%clk 0:03:01]}  d6 {[%clk 0:03:02]} 7. d5 {[%clk 0:03:01]}  Na6 {[%clk 0:03:02]} 8. Nf4 {[%clk 0:03:01]}  Bd7 {[%clk 0:03:02]} 9. Nc3 {[%clk 0:03:01]}  Qe8 {[%clk 0:03:01]} 10. Rb1 {[%clk 0:02:53]}  c6 {[%clk 0:03:01]} 11. b4 {[%clk 0:02:52]}  Nc7 {[%clk 0:02:59]} 12. Bb2 {[%clk 0:02:47]}  Rc8 {[%clk 0:02:46]} 13. dxc6 {[%clk 0:02:40]}  bxc6 {[%clk 0:02:46]} 14. Qa4 {[%clk 0:02:37]}  c5 {[%clk 0:02:43]} 15. b5 {[%clk 0:02:37]}  a6 {[%clk 0:02:41]} 16. Qb3 {[%clk 0:02:37]}  axb5 {[%clk 0:02:38]} 17. cxb5+ {[%clk 0:02:37]}  Kh8 {[%clk 0:02:37]} 18. a4 {[%clk 0:02:36]}  g5 {[%clk 0:02:30]} 19. Nfd5 {[%clk 0:02:36]}  Be6 {[%clk 0:02:21]} 20. Rfd1 {[%clk 0:02:33]}  Qf7 {[%clk 0:02:20]} 21. b6 {[%clk 0:02:23]}  Ncxd5 {[%clk 0:02:15]} 22. Nxd5 {[%clk 0:02:24]}  c4 {[%clk 0:02:15]} 23. Qb5 {[%clk 0:02:21]}  Rc5 {[%clk 0:02:14]} 24. Bxf6 {[%clk 0:02:14]}  Rxb5 {[%clk 0:02:14]} 25. Bxg7+ {[%clk 0:02:14]}  Kxg7 {[%clk 0:02:12]} 26. Rxb5 {[%clk 0:02:15]}  Rb8 {[%clk 0:02:03]} 27. a5 {[%clk 0:02:15]}  Qe8 {[%clk 0:02:03]} 28. Nc7 {[%clk 0:02:14]}  Qd7 {[%clk 0:02:03]} 29. a6 {[%clk 0:02:10]}  Qxc7 {[%clk 0:02:02]} 30. bxc7 {[%clk 0:02:09]}  Rxb5 {[%clk 0:02:02]} 31. a7 {[%clk 0:02:07]}  c3 {[%clk 0:02:02]} 32. a8=Q {[%clk 0:02:00]}  c2 {[%clk 0:02:02]} 1-0


[Site "https://www.chess.com"]

[Event "Titled Tuesday Blitz May 16 Late 2023"]
[White "Carlsen, Magnus"]
[Black "Rosen, Eric"]
[WhiteFideId "1503014"]
[BlackFideId "2032562"]
[WhiteElo "2852"]
[BlackElo "2331"]
[Result "1-0"]
[Round "02"]
[TimeControl "180+2"]
[Date "2023.05.16"]
[WhiteClock "0:02:12"]
[BlackClock "0:00:01"]

1. f4 {[%clk 0:02:54]}  d5 {[%clk 0:02:57]} 2. Nf3 {[%clk 0:02:53]}  g6 {[%clk 0:02:50]} 3. d3 {[%clk 0:02:52]}  Bg7 {[%clk 0:02:50]} 4. e4 {[%clk 0:02:52]}  c6 {[%clk 0:02:46]} 5. e5 {[%clk 0:02:49]}  Nh6 {[%clk 0:02:46]} 6. d4 {[%clk 0:02:48]}  Bg4 {[%clk 0:02:45]} 7. h3 {[%clk 0:02:47]}  Bxf3 {[%clk 0:02:45]} 8. Qxf3 {[%clk 0:02:48]}  Nf5 {[%clk 0:02:42]} 9. c3 {[%clk 0:02:42]}  e6 {[%clk 0:02:33]} 10. g4 {[%clk 0:02:42]}  Nh4 {[%clk 0:02:18]} 11. Qf2 {[%clk 0:02:41]}  h5 {[%clk 0:02:10]} 12. Be3 {[%clk 0:02:39]}  Nd7 {[%clk 0:02:08]} 13. Nd2 {[%clk 0:02:38]}  Bf8 {[%clk 0:02:08]} 14. O-O-O {[%clk 0:02:37]}  Be7 {[%clk 0:02:08]} 15. Bd3 {[%clk 0:02:37]}  Qa5 {[%clk 0:02:07]} 16. Kb1 {[%clk 0:02:34]}  O-O-O {[%clk 0:01:55]} 17. f5 {[%clk 0:02:34]}  gxf5 {[%clk 0:01:43]} 18. gxf5 {[%clk 0:02:35]}  exf5 {[%clk 0:01:28]} 19. Bxf5 {[%clk 0:02:36]}  Nxf5 {[%clk 0:01:19]} 20. Qxf5 {[%clk 0:02:37]}  Rdf8 {[%clk 0:01:09]} 21. Rhg1 {[%clk 0:02:37]}  Qd8 {[%clk 0:01:06]} 22. Rg7 {[%clk 0:02:36]}  f6 {[%clk 0:01:02]} 23. e6 {[%clk 0:02:30]}  Nb6 {[%clk 0:01:02]} 24. Bf4 {[%clk 0:02:30]}  Rfg8 {[%clk 0:00:46]} 25. Rf7 {[%clk 0:02:28]}  Rg2 {[%clk 0:00:31]} 26. h4 {[%clk 0:02:19]}  Nc4 {[%clk 0:00:30]} 27. Nxc4 {[%clk 0:02:18]}  dxc4 {[%clk 0:00:31]} 28. d5 {[%clk 0:02:18]}  Qb6 {[%clk 0:00:25]} 29. Bc1 {[%clk 0:02:17]}  Ba3 {[%clk 0:00:05]} 30. Rf8+ {[%clk 0:02:17]}  Rxf8 {[%clk 0:00:02]} 31. e7+ {[%clk 0:02:15]}  Kb8 {[%clk 0:00:03]} 32. Bf4+ {[%clk 0:02:12]}  Ka8 {[%clk 0:00:02]} 33. exf8=Q+ {[%clk 0:02:12]}  Bxf8 {[%clk 0:00:01]} 34. Qc8# {[%clk 0:02:12]} 1-0


[Site "https://www.chess.com"]

[Event "Titled Tuesday Blitz May 16 Late 2023"]
[White "Maltsevskaya, Aleksandra"]
[Black "Mamedyarov, Shakhriyar"]
[WhiteFideId "24174041"]
[BlackFideId "13401319"]
[WhiteElo "2302"]
[BlackElo "2704"]
[Result "1-0"]
[Round "02"]
[TimeControl "180+2"]
[Date "2023.05.16"]
[WhiteClock "0:00:07"]
[BlackClock "0:00:00"]

1. Nf3 {[%clk 0:02:06]}  g6 {[%clk 0:02:56]} 2. c4 {[%clk 0:02:06]}  Bg7 {[%clk 0:02:56]} 3. Nc3 {[%clk 0:02:07]}  d6 {[%clk 0:02:51]} 4. g3 {[%clk 0:02:06]}  Nf6 {[%clk 0:02:49]} 5. Bg2 {[%clk 0:02:07]}  O-O {[%clk 0:02:50]} 6. O-O {[%clk 0:02:08]}  e5 {[%clk 0:02:50]} 7. d4 {[%clk 0:02:08]}  Nbd7 {[%clk 0:02:50]} 8. dxe5 {[%clk 0:02:09]}  dxe5 {[%clk 0:02:50]} 9. b3 {[%clk 0:02:08]}  Re8 {[%clk 0:02:49]} 10. Bb2 {[%clk 0:02:08]}  c6 {[%clk 0:02:49]} 11. Qc2 {[%clk 0:02:07]}  Nc5 {[%clk 0:02:46]} 12. Rad1 {[%clk 0:02:06]}  Qc7 {[%clk 0:02:46]} 13. Ba3 {[%clk 0:01:53]}  Bf5 {[%clk 0:02:44]} 14. Qc1 {[%clk 0:01:52]}  Bf8 {[%clk 0:02:29]} 15. Ng5 {[%clk 0:01:42]}  e4 {[%clk 0:02:21]} 16. b4 {[%clk 0:01:30]}  Ncd7 {[%clk 0:02:17]} 17. c5 {[%clk 0:01:30]}  h6 {[%clk 0:02:12]} 18. Nh3 {[%clk 0:01:27]}  Ne5 {[%clk 0:02:12]} 19. Bb2 {[%clk 0:01:27]}  a5 {[%clk 0:02:06]} 20. b5 {[%clk 0:01:20]}  Qc8 {[%clk 0:01:49]} 21. Nf4 {[%clk 0:01:18]}  Bxc5 {[%clk 0:01:49]} 22. Nxe4 {[%clk 0:01:11]}  Nxe4 {[%clk 0:01:39]} 23. Bxe4 {[%clk 0:01:11]}  Bxf2+ {[%clk 0:01:24]} 24. Rxf2 {[%clk 0:01:10]}  Bxe4 {[%clk 0:01:25]} 25. Nd3 {[%clk 0:00:13]}  Bxd3 {[%clk 0:01:08]} 26. exd3 {[%clk 0:00:14]}  Qg4 {[%clk 0:01:08]} 27. Rdf1 {[%clk 0:00:13]}  g5 {[%clk 0:00:35]} 28. Qc3 {[%clk 0:00:10]}  Re7 {[%clk 0:00:22]} 29. d4 {[%clk 0:00:09]}  Ng6 {[%clk 0:00:06]} 30. d5 {[%clk 0:00:09]}  Re5 {[%clk 0:00:05]} 31. dxc6 {[%clk 0:00:06]}  bxc6 {[%clk 0:00:05]} 32. bxc6 {[%clk 0:00:07]}  Qe6 {[%clk 0:00:02]} 33. Rxf7 {[%clk 0:00:07]}  Qe7 {[%clk 0:00:00]} 34. Rxe7 {[%clk 0:00:07]} 1-0


[Site "https://www.chess.com"]